Cogmind - Beta 16 @@@ ROGUE MODE // 2026.01.24 @ 20:08:32 Player: Derk Result: Destroyed by I2-NMM(R) with Subdweller Laser Performance ------------- Evolutions (0) 0 Regions Visited (2) 400 Robots Destroyed (23) 115 Value Destroyed (481) 481 Prototype IDs (5) 100 Alien Tech Used (0) 0 Bonus (0) 0 TOTAL SCORE: 1096 Bonus ------- None Cogmind --------- Core Integrity 0/250 Matter 273/300 Energy 183/200 System Corruption 0% Temperature Cool (6) Movement Rolling (155) Ox5 Location -10/Subcaves Parts ------- > --- POWER (1) -------- Subdweller Power Source > --- PROPULSION (2) --- Aluminum Leg Wheel > --- UTILITY (2) ------ High-capacity Storage Unit Makeshift Light Armor Plating > --- WEAPON (2) ------- EM Pulse Gun Assault Rifle > --- INVENTORY (20) --- Wheel Disposable Heat Sink Huge Storage Unit High-capacity Matter Pod (200) Machine Analyzer Improved Terrain Scanner Seismic Detector Recalibrator EM Pulse Gun Subdweller Laser Assault Rifle Assault Rifle Assault Rifle Assault Rifle Assault Rifle Subdweller Machine Gun Peak State ------------ > --- POWER ------------ (None) > --- PROPULSION ------- Light Treads Light Treads > --- UTILITY ---------- High-capacity Storage Unit Makeshift Light Armor Plating > --- WEAPON ----------- Assault Rifle Subdweller Machine Gun > --- INVENTORY -------- Aluminum Leg Wheel Wheel Subdweller Monowheel Disposable Heat Sink Huge Storage Unit High-capacity Matter Pod Machine Analyzer Improved Terrain Scanner Seismic Detector Recalibrator EM Pulse Gun EM Pulse Gun Subdweller Laser Assault Rifle Assault Rifle Assault Rifle Assault Rifle Assault Rifle Assault Rifle [Rating: 13] Favorites ----------- Power Ion Engine Engine Ion Engine Propulsion Light Treads Treads Light Treads Leg Aluminum Leg Wheel Wheel Utility Seismic Detector Device Seismic Detector Storage High-capacity Storage Unit Protection Makeshift Light Armor Plating Weapon Assault Rifle Energy Gun EM Pulse Gun Ballistic Gun Assault Rifle Build | -11 -10 -10 ------- Run | Yrd Mat Sub Slots Evolved . | . . . Power . | . . . Propulsion . | . . . Utility . | . . . Weapon . | . . . Parts Attached 18 | 7 4 7 Power 2 | 1 . 1 Engine 2 | 1 . 1 Core . | . . . Reactor . | . . . Propulsion 5 | 2 . 3 Treads 2 | 2 . . Leg 1 | . . 1 Wheel 2 | . . 2 Hover . | . . . Flight . | . . . Utility 5 | 2 2 1 Device 1 | 1 . . Storage 3 | 1 2 . Processor . | . . . Hackware . | . . . Protection 1 | . . 1 Artifact . | . . . Weapon 6 | 2 2 2 Energy Gun 2 | . 1 1 Energy Cannon . | . . . Ballistic Gun 4 | 2 1 1 Ballistic Cannon . | . . . Launcher . | . . . Special Weapon . | . . . Impact Weapon . | . . . Slashing Weapon . | . . . Piercing Weapon . | . . . Special Melee Weapon . | . . . Unidentified Prototypes . | . . . Parts Lost 6 | . 1 5 Power . | . . . Propulsion 3 | . . 3 Utility . | . . . Weapon 3 | . 1 2 Highest Loss Streak 5 | . 1 5 To Critical Strikes 2 | . . 2 Average Backups 12 | 4 10 18 Power . | . . . Propulsion 3 | 3 3 3 Utility 5 | . 5 6 Weapon 4 | . 2 8 Tool/Special . | . . . Unused Backups 18 | 1 2 15 Power . | . . . Propulsion 3 | . 1 2 Utility 8 | 1 1 6 Weapon 7 | . . 7 Tool/Special . | . . . Average Slot Usage (%) 91 | . 93 87 Engine 6 | . 8 2 Treads 25 | . 27 21 Leg 1 | . . 3 Wheel 1 | . . 2 Device 12 | . 14 10 Storage 14 | . 14 14 Protection 1 | . . 3 Energy Gun 2 | . 2 3 Ballistic Gun 25 | . 25 24 Peak Build Rating 13 | 7 8 13 Average Rating 8 | 6 7 9 On Entrance 5 | . 7 8 Avg Prop Armor Cover (%) 7 | . . 7 Naked Turns . | . . . Heaviest Build 53 | 14 49 53 Greatest Support 40 | 40 40 40 Greatest Overweight (x) 5 | . 1 5 Average Overweight (x) 1 | . . 1 Largest Inventory Capacity 20 | 8 20 20 Average Capacity 17 | 7 17 20 Most Carried 20 | 7 18 20 Average Carried 12 | 4 10 18 Final Capacity 20 | 8 20 20 Final Carried 18 | 7 18 16 Class Distribution -------------------- 100% | Mutant Dominant Class ---------------- Mutant | -10/Materials Mutant | -10/Subcaves Resources | -11 -10 -10 ----------- Run | Yrd Mat Sub Matter Collected 1037 | 379 477 181 Remotely . | . . . Salvage Created 718 | 113 424 181 Parts 51 | 11 30 10 Haulers Intercepted 1 | . 1 . Recyclers Shooed 1 | 1 . . Parts Field Recycled . | . . . Retrieved Matter . | . . . Parts Self-Destructed 10 | . . 10 Prevented . | . . . Parts Restored . | . . . Kills | -11 -10 -10 ------- Run | Yrd Mat Sub Combat Hostiles Destroyed 16 | . 12 4 Guns 16 | . 12 4 Classes Destroyed 8 | 3 4 1 Worker 3 | 2 1 . Tunneler 1 | 1 . . Hauler 1 | . 1 . Recycler 1 | 1 . . Mechanic 1 | . 1 . Swarmer 6 | . 6 . Grunt 6 | . 6 . Subdweller 4 | . . 4 Best Kill Streak 3 | 2 3 1 Combat Bots Only 3 | . 3 1 Max Kills in Single Turn 1 | 1 1 1 Gunslinging . | . . . Exploded . | . . . Melee . | . . . Uniques/NPCs Destroyed . | . . . Combat | -11 -10 -10 -------- Run | Yrd Mat Sub Hostile Shots Fired 106 | . 65 41 Missed 28 | . 20 8 Hits 78 | . 45 33 Projectile 78 | . 45 33 AOE 1 | . . 1 Critical Strikes 2 | . . 2 Damage Taken 1216 | . 489 727 Core 254 | . 92 162 Absorbed by Shields . | . . . Core Remaining (%) 100 | 100 . . Volleys Fired 98 | 13 54 31 Largest 2 | 2 2 2 Hottest 80 | 40 60 80 Shots Fired 185 | 26 101 58 Gun 185 | 26 101 58 Cannon . | . . . Launcher . | . . . Special . | . . . Kinetic 168 | 26 98 44 Thermal . | . . . Explosive . | . . . Electromagnetic 17 | . 3 14 Robot Hit Streak 21 | 4 14 21 Robot Miss Streak 4 | 3 3 4 Penetration Max . | . . . Secondary Targets 1 | . 1 . Max Gunslinging Chain 1 | . 1 . Shots Hit Robots 129 | 14 71 44 Core Hits 46 | 7 30 9 Critical Kills 1 | . 1 . Critical Parts Destroyed . | . . . Critical Strikes 1 | . 1 . Destroy 1 | . 1 . Melee Attacks . | . . . Impact . | . . . Slashing . | . . . Piercing . | . . . Sneak Attacks . | . . . Combat Hostiles . | . . . Follow-up Attacks . | . . . Damage Inflicted 1522 | 137 742 643 Guns 1522 | 137 742 643 Cannons . | . . . Explosions . | . . . Melee . | . . . Ramming . | . . . Kinetic 1332 | 137 703 492 Thermal . | . . . Explosive . | . . . Electromagnetic 190 | . 39 151 Impact . | . . . Slashing . | . . . Piercing . | . . . Highest Corruption . | . . . Average Corruption . | . . . Corruption Purged . | . . . Corruption Blocked . | . . . Overload Shots . | . . . Overflow Damage . | . . . Projectiles . | . . . Explosions . | . . . Melee . | . . . Knockbacks . | . . . Impact . | . . . Kinetic . | . . . Secondary . | . . . Self-Inflicted Damage . | . . . Shots . | . . . Rammed . | . . . Targets Rammed . | . . . Kicked . | . . . Crushed . | . . . Highest Temperature 12 | . 12 . Average Temperature 6 | . 6 . Received Heat Transfer 327 | . 207 120 Siege Activations . | . . . Martial Activations . | . . . Shielding Activations . | . . . Robots Disrupted . | . . . Combat Hostiles . | . . . Robots Corrupted . | . . . Combat Hostiles . | . . . Parts Fried 1 | . . 1 Impact Corruptions . | . . . Robots Melted . | . . . Combat Hostiles . | . . . Parts Melted . | . . . Heat Transferred . | . . . Parts Sabotaged . | . . . Parts Stolen . | . . . Parts Stripped . | . . . Power Chain Reactions . | . . . Alert | -11 -10 -10 ------- Run | Yrd Mat Sub Maximum Alert Level . | . . . Low Security (%) 100 | 100 100 . Level 1 . | . . . Level 2 . | . . . Level 3 . | . . . Level 4 . | . . . Level 5 . | . . . High Security . | . . . Max Security . | . . . Peak Influence 77 | 5 77 . Initial . | . . . Average 23 | 1 26 . Influence Increases 397 | 20 377 . Destroy 0b10 Robot/C 240 | . 240 . Destroy 0b10 Robot/NC 35 | 20 15 . Destroy Leader 62 | . 62 . Successful Hack 45 | . 45 . Lose Combat Pursuer 15 | . 15 . Influence Decreases 397 | 20 377 . Time Decay 387 | 20 367 . Lost Part 10 | . 10 . Squads Dispatched 2 | . 2 . Investigation 1 | . 1 . Extermination . | . . . Reinforcement 1 | . 1 . Assault . | . . . Garrison . | . . . Intercept . | . . . Searches Triggered . | . . . Construction Impeded . | . . . Haulers Reinforced . | . . . Active Scanning Responses . | . . . Cargo Convoy Interrupts . | . . . Stealth | -11 -10 -10 --------- Run | Yrd Mat Sub Distress Signals 3 | . 3 . Communications Jammed . | . . . Distress Signals . | . . . Times Spotted 30 | . 23 7 Peak Tracking Total 4 | . 4 3 Tactical Retreats 1 | . 1 . Traps | -11 -10 -10 ------- Run | Yrd Mat Sub Traps Triggered 1 | . 1 . Indirectly . | . . . Trap Hack Attempts . | . . . Triggered . | . . . Disarmed . | . . . Reprogrammed . | . . . Reused . | . . . Traps Extracted . | . . . Installed . | . . . Triggered . | . . . Machines | -11 -10 -10 ---------- Run | Yrd Mat Sub Machines Disabled . | . . . Max in Single Turn . | . . . Machines Repaired . | . . . Machines Dismantled . | . . . Machines Sabotaged . | . . . Overloaded Fab Kills . | . . . Hacking | -11 -10 -10 --------- Run | Yrd Mat Sub Machines Accessed 7 | . 7 . Terminals 7 | . 7 . Fabricators . | . . . Repair Stations . | . . . Recycling Units . | . . . Scanalyzers . | . . . Garrison Access . | . . . Total Hacks 22 | . 22 . Successful 8 | . 8 . Failed 14 | . 14 . Catastrophic . | . . . Database Lockouts . | . . . Manual 5 | . 5 . Terminals 22 | . 22 . Fabricators . | . . . Repair Stations . | . . . Recycling Units . | . . . Scanalyzers . | . . . Garrison Access . | . . . Terminal Hacks 8 | . 8 . Robot Analysis 1 | . 1 . Prototype ID Bank 3 | . 3 . Branch Access Points 1 | . 1 . Locate Traps 1 | . 1 . Hauler Manifests 1 | . 1 . Zone Layout 1 | . 1 . Fabricator Hacks . | . . . Repair Station Hacks . | . . . Recycling Unit Hacks . | . . . Scanalyzer . | . . . Garrison Access Hacks . | . . . Unauthorized Hacks . | . . . Terminals . | . . . Fabricators . | . . . Repair Stations . | . . . Recycling Units . | . . . Scanalyzers . | . . . Garrison Access . | . . . Data Cores Recovered . | . . . Used . | . . . Hacking Detections 7 | . 7 . Full Trace Events 1 | . 1 . Feedback Events . | . . . Feedback Blocked . | . . . Robot Schematics Acquired . | . . . Robots Built . | . . . Authchips . | . . . Time . | . . . Total Robot Build Rating . | . . . Part Schematics Acquired . | . . . Parts Built . | . . . Authchips . | . . . Time . | . . . Total Part Build Rating . | . . . Part Studies Acquired . | . . . Parts Repaired . | . . . Time . | . . . Parts Recycled . | . . . Recycled Matter . | . . . Retrieved Matter . | . . . Retrieved Components . | . . . Parts Scanalyzed . | . . . Part Schematics Acquired . | . . . Parts Damaged . | . . . Bothacking | -11 -10 -10 ------------ Run | Yrd Mat Sub Used RIF Installer . | . . . Robots Hacked . | . . . Non-combat . | . . . Combat . | . . . Robot Hacks Applied . | . . . Relay Couplers Released . | . . . Fabnet Peak Effective % . | . . . Robots Rewired . | . . . Allies Hacked . | . . . Hacks Repelled . | . . . Allies | -11 -10 -10 -------- Run | Yrd Mat Sub Total Allies . | . . . Largest Group . | . . . Highest-Rated Group . | . . . Highest-Rated Ally . | . . . Total Orders . | . . . Ally Attacks . | . . . Total Damage . | . . . Kills . | . . . Allies Corrupted . | . . . Allies Melted . | . . . Intel | -11 -10 -10 ------- Run | Yrd Mat Sub Active Infowar (turns) 2133 | 127 1397 609 Seismic 2133 | 127 1397 609 Robot Analysis Total 1 | . 1 . Derelict Logs Recovered 2 | . . 2 Drone Launches . | . . . Drone Recoveries . | . . . Exploration | -11 -10 -10 ------------- Run | Yrd Mat Sub Turns Passed 2394 | 203 1397 794 Spaces Moved 966 | 98 554 314 Core 8 | 8 . . Treads 878 | 90 554 234 Legs . | . . . Wheels 80 | . . 80 Hover . | . . . Flight . | . . . Fastest Speed 50 | 50 160 130 Average Speed 212 | 151 220 218 Slowest Speed 240 | 160 240 240 Overloaded Moves . | . . . Propulsion Burnouts . | . . . Robots Hopped . | . . . Potential Cave-ins . | . . . Cave-ins Triggered . | . . . Exploration Rate (%) 37 | 6 88 18 Regions Visited 2 Branch Regions 1 Pre-discovered Areas 1 | . . 1 Known Exits Taken . | . . . Unknown Exits Taken 2 | 1 1 . Scrap Searched . | . . . Spaces Dug . | . . . Terrain Destroyed . | . . . Melee . | . . . Projectile . | . . . AOE . | . . . Terrain Rammed . | . . . Walls Destroyed . | . . . Machines Disabled . | . . . Actions | -11 -10 -10 --------- Run | Yrd Mat Sub Total 1135 | 127 641 367 Wait 18 | 1 13 4 Move 964 | 97 553 314 Hop . | . . . Pick Up 27 | 8 13 6 Fast Attach 9 | 7 1 1 Attach 6 | . 1 5 Detach . | . . . Swap 6 | . 3 3 Drop 7 | 1 3 3 Fire 98 | 13 54 31 Melee . | . . . Ram . | . . . Kick . | . . . Crush . | . . . Escape Stasis . | . . . Rewire . | . . . Trap . | . . . Miscellaneous . | . . . Route ------- -11/Scrapyard -10/Materials (discovered 6 exits: [*Mat x3] / *Min x2 / [*Sub]) -10/Subcaves (discovered 1 exit: *Mat) History --------- Turn | Location | Event 12 | -11/Scrapyard | Discovered new exit (range 15) 204 | -11/Scrapyard | Entered Materials 309 | -10/Materials | Build established: Mutant 518 | -10/Materials | Discovered new exit (range 3) 921 | -10/Materials | Discovered new exit (range 11) 921 | -10/Materials | Discovered new exit (range 3) 1140 | -10/Materials | Identified exit to Mines 1236 | -10/Materials | Discovered new exit (range 16) 1342 | -10/Materials | Discovered new exit (range 9) 1601 | -10/Materials | Entered Subcaves 1625 | -10/Subcaves | Identified exit to Materials 1979 | -10/Subcaves | Shifting Twisted Machinery released Mak. Light Armor Plating 2225 | -10/Subcaves | Core integrity fell below 50% 2249 | -10/Subcaves | Core integrity fell below 20% 2271 | -10/Subcaves | Lost 5 parts (3n2w) 2381 | -10/Subcaves | Shifting Twisted Machinery released Barrage Gun 2389 | -10/Subcaves | Ambushed by Subdweller buried in earth 2395 | -10/Subcaves | Destroyed by I2-NMM(R) with Subdweller Laser Last Messages --------------- 02218_ Critical hit (Destroy). 02218_ Lgt. Treads destroyed. 02223_ Critical hit (Destroy). 02223_ Sub. Machine Gun destroyed. 02225_ Assault Rifle destroyed. 02228_ JL-X90(R) destroyed. 02240_ Sub. Monowheel destroyed. 02243_ Subatomizers dissect the Corrupted Sub. Power Source. 02254_ 60-TSF(R) misfires. 02257_ Sub. Optics fried. 02257_ 60-TSF(R) destroyed. 02261_ Acquired 53 matter. 02264_ Subatomizers dissect the Corrupted Sub. Power Source. 02268_ Acquired Sub. Power Source. 02271_ Acquired 56 matter. 02275_ Acquired Sub. Machine Gun. 02289_ Subatomizers dissect the Corrupted Sub. Power Source. 02329_ IZ-4ZI(u) deconstructs Twisted Machinery. Barrage Gun falls loose from the Twisted Machinery. 02390_ I2-NMM(R): "ARGHSUB!" Map ----- +----------------------------------------------------+ | | | | | | | | | | | ?????????????????????????????????????????????????? | | ?????????????????????????????????????????????????? | | ?????????????????????????????????????????????????? | | ?????????????????????????????????????????????????? | | ?????????????????????????????????????????????????? | | ?????????????????????????????????????????????????? | | ?????????????????????????????????????????????????? | | ?????????????????????????????????????????????????? | | ?????????????????????????????????????????????????? | | ?????????????????????????????????????????????????? | | ?????????????????????????????????????????????????? | | ?????????????????????????????????????????????????? | | ?????????????????????????????????????????????????? | | ?????????????????????????????????????????????????? | | ?????????????????????????????????????????????????? | | ??????????????????????????????###????????????????? | | ?????????????????????????????#""##???????????????? | | ??????????????????????####### ""##??????????????? | | ??????????#############; ;; "R ??????????????? | | ??????????# # # ## ;R;; """"[#?????????????? | | ???????????# = @ R < #?????????????? | | ??????????## # ### ; """" ???????? | | ??????????# #####?#;;;;;;;;#""""???????????????? | | ??????????## ##????### ### ##??##???????????????? | | ?????????## #??????##???##????????????????????? | | ????????## #?????????????????????????????????? | | ????????# ##????????????????????????????????? | | ????????# ##???????????????????????????????? | | ????????## ##??????????????????????????????? | | ?#####??## #??????????????????????????????? | | ## #?## #??????????????????????????????? | | # #?# ##??????????????????????????????? | | # #?#### #???????????????????????????????? | | # ##???## #???????????????????????????????? | | ####?## #???????????????????????????????? | | ##?# ##???????????????????????????????? | | ##### ### #????????????????????????????????? | | #???### #????????????????????????????????? | | ##???# ###??????????????????????????????? | | ##### #??????????????????????????????? | | #??????????????????????????????? | | ! #??????????????????????????????? | | #??????????????????????????????? | | # ### #??????????????????????????????? | | # ## ##??####??????????????????????????????? | +----------------------------------------------------+ Best States ------------- Heat Dissipation 25 Energy Generation 15 Energy Capacity 250 Matter Stores 300 Matter Capacity 300 Sight Range 16 Terrain Scan Density 10 Armor Coverage 100 Evasion (%) 40 Recoil Reduction 2 Item Schematics ----------------- None Robot Schematics ------------------ None Fabricated ------------ Nothing Repaired ---------- Nothing Studied --------- None Alien Tech Used ----------------- None Achievements -------------- None Challenges ------------ None Game ------ Seed NetworkPartitionDiverter Manual? 0 Play Time 00:16:52 Cumulative 564.7 hours Start 2026.01.24 @ 19:55:28 End 2026.01.24 @ 20:08:32 Sessions 1 Manual Loads 0 Difficulty Rogue Special Mode None Game No. 236 Rogue 236 Adventurer 0 Explorer 0 Win Type - Total 18 Types 16/0/1/1/0/0/0/0/0/0 Lore% 81 Gallery% 78 Achievement% 57 Wizard Run 0 Options --------- Layout 0 ASCII 0 Keyboard 0 Movement Numpad Keybinds 0 Fullscreen 1 Font 24/X11 Map View 76x50 Zoom Use 0% Tactical HUD 1 Map Filters NONE Filters NONE Steam 1 RUN: 712e6772-dbe2-4f39-9f19-a09cae3df534